[Event "Early-Titled-Tuesday-Blitz-March-05-2024"]
[Site "Chess.com"]
[Date "2024.03.05"]
[Round "4"]
[White "Antipov_Mikhail_Al"]
[Black "Neijin"]
[Result "1-0"]
[WhiteElo "2945"]
[BlackElo "2713"]
[TimeControl "180+1"]
[EndTime "8:41:54 PST"]
[Termination "Antipov_Mikhail_Al won by checkmate"]

1. e4 {[%clk 0:02:57.7]} 1... e5 {[%clk 0:02:58.8]} 2. Nf3 {[%clk 0:02:57.5]}
2... Nc6 {[%clk 0:02:59.5]} 3. Bc4 {[%clk 0:02:57.6]} 3... Nf6 {[%clk
0:02:59.6]} 4. d3 {[%clk 0:02:57.5]} 4... Bc5 {[%clk 0:02:59.6]} 5. O-O {[%clk
0:02:57.5]} 5... d6 {[%clk 0:02:59.7]} 6. c3 {[%clk 0:02:57.6]} 6... h6 {[%clk
0:02:58.4]} 7. Nbd2 {[%clk 0:02:51.7]} 7... a5 {[%clk 0:02:58.4]} 8. Re1 {[%clk
0:02:50.2]} 8... O-O {[%clk 0:02:58.6]} 9. Nf1 {[%clk 0:02:47.9]} 9... Ne7
{[%clk 0:02:53.3]} 10. Ng3 {[%clk 0:02:41.8]} 10... Ng6 {[%clk 0:02:53.2]} 11.
h3 {[%clk 0:02:34.7]} 11... c6 {[%clk 0:02:53]} 12. Bb3 {[%clk 0:02:19.6]} 12...
Ba7 {[%clk 0:02:41.2]} 13. d4 {[%clk 0:02:19.4]} 13... Qc7 {[%clk 0:02:32.7]}
14. a4 {[%clk 0:02:16.8]} 14... Kh8 {[%clk 0:02:15]} 15. Be3 {[%clk 0:02:12.5]}
15... exd4 {[%clk 0:02:07.3]} 16. cxd4 {[%clk 0:02:10.9]} 16... d5 {[%clk
0:02:07.4]} 17. e5 {[%clk 0:02:09.8]} 17... Ne4 {[%clk 0:02:07.9]} 18. Bc2
{[%clk 0:02:03.8]} 18... Nxg3 {[%clk 0:01:46.9]} 19. fxg3 {[%clk 0:02:04.7]}
19... Be6 {[%clk 0:01:38.7]} 20. Qd2 {[%clk 0:01:55.9]} 20... f5 {[%clk
0:01:06.9]} 21. Bxh6 {[%clk 0:01:45.4]} 21... gxh6 {[%clk 0:00:54.7]} 22. Qxh6+
{[%clk 0:01:46.3]} 22... Qh7 {[%clk 0:00:46.2]} 23. Qxh7+ {[%clk 0:01:46.6]}
23... Kxh7 {[%clk 0:00:46.8]} 24. Ng5+ {[%clk 0:01:47.2]} 24... Kh6 {[%clk
0:00:45.8]} 25. Nxe6 {[%clk 0:01:46.7]} 25... Rf7 {[%clk 0:00:30.4]} 26. g4
{[%clk 0:01:36]} 26... fxg4 {[%clk 0:00:23.9]} 27. Rf1 {[%clk 0:01:34.8]} 27...
Nxe5 {[%clk 0:00:09.9]} 28. Rxf7 {[%clk 0:01:24.2]} 28... Nxf7 {[%clk
0:00:10.8]} 29. Rf1 {[%clk 0:01:23.5]} 29... Ne5 {[%clk 0:00:04.1]} 30. Rf6+
{[%clk 0:01:22.9]} 30... Kh5 {[%clk 0:00:04.1]} 31. Rf5+ {[%clk 0:00:34.1]}
31... Kh4 {[%clk 0:00:04.7]} 32. Rxe5 {[%clk 0:00:35]} 32... gxh3 {[%clk
0:00:05.4]} 33. Bd1 {[%clk 0:00:28.9]} 33... hxg2 {[%clk 0:00:03.2]} 34. Rh5+
{[%clk 0:00:22.5]} 34... Kg3 {[%clk 0:00:03.3]} 35. Rg5+ {[%clk 0:00:21.8]}
35... Kh3 {[%clk 0:00:02.9]} 36. Nf4+ {[%clk 0:00:20.8]} 36... Kh4 {[%clk
0:00:03.4]} 37. Rg4# {[%clk 0:00:21.7]} 1-0

[Event "Early-Titled-Tuesday-Blitz-March-05-2024"]
[Site "Chess.com"]
[Date "2024.03.05"]
[Round "4"]
[White "Austen48"]
[Black "PositionalPanther"]
[Result "0-1"]
[WhiteElo "2281"]
[BlackElo "2618"]
[TimeControl "180+1"]
[EndTime "8:41:54 PST"]
[Termination "PositionalPanther won by checkmate"]

1. d4 {[%clk 0:03:00.9]} 1... d5 {[%clk 0:02:59.1]} 2. c4 {[%clk 0:02:59.9]}
2... e6 {[%clk 0:02:58.5]} 3. Nc3 {[%clk 0:02:58.8]} 3... Nf6 {[%clk 0:02:57.3]}
4. cxd5 {[%clk 0:02:57.6]} 4... exd5 {[%clk 0:02:57.8]} 5. Bg5 {[%clk
0:02:56.7]} 5... c6 {[%clk 0:02:56.5]} 6. e3 {[%clk 0:02:56.6]} 6... Be7 {[%clk
0:02:51.5]} 7. Qc2 {[%clk 0:02:56.4]} 7... h6 {[%clk 0:02:50.5]} 8. Bh4 {[%clk
0:02:54.5]} 8... O-O {[%clk 0:02:49.6]} 9. Bd3 {[%clk 0:02:53.7]} 9... Ne8
{[%clk 0:02:49.2]} 10. Bg3 {[%clk 0:02:50.3]} 10... Nd6 {[%clk 0:02:49]} 11. Nf3
{[%clk 0:02:45.6]} 11... Be6 {[%clk 0:02:41.4]} 12. h3 {[%clk 0:02:43.9]} 12...
Nd7 {[%clk 0:02:41.2]} 13. O-O {[%clk 0:02:42.5]} 13... Re8 {[%clk 0:02:33]} 14.
Ne5 {[%clk 0:02:41.6]} 14... Nf8 {[%clk 0:02:19.1]} 15. Rae1 {[%clk 0:02:38.5]}
15... Rc8 {[%clk 0:02:11.7]} 16. Qb1 {[%clk 0:02:34.8]} 16... c5 {[%clk
0:01:55.7]} 17. dxc5 {[%clk 0:02:26.2]} 17... Rxc5 {[%clk 0:01:56.6]} 18. Rd1
{[%clk 0:02:25.5]} 18... Qc8 {[%clk 0:01:42.8]} 19. Ne2 {[%clk 0:02:21.9]} 19...
Rd8 {[%clk 0:01:31]} 20. Rc1 {[%clk 0:02:18.9]} 20... Nc4 {[%clk 0:01:25.8]} 21.
Rfd1 {[%clk 0:01:58.6]} 21... Bf6 {[%clk 0:01:17.9]} 22. Nxc4 {[%clk 0:01:47.4]}
22... dxc4 {[%clk 0:01:18]} 23. Be4 {[%clk 0:01:46.5]} 23... Bd5 {[%clk
0:01:07.2]} 24. Nd4 {[%clk 0:01:37.1]} 24... Bxe4 {[%clk 0:01:06.1]} 25. Qxe4
{[%clk 0:01:36.5]} 25... Bxd4 {[%clk 0:01:03.8]} 26. Rxd4 {[%clk 0:01:33.5]}
26... Rxd4 {[%clk 0:01:03.7]} 27. exd4 {[%clk 0:01:28.9]} 27... Qc6 {[%clk
0:00:48]} 28. Qe2 {[%clk 0:01:19.2]} 28... Ra5 {[%clk 0:00:40.6]} 29. Rxc4
{[%clk 0:01:16.4]} 29... Qe6 {[%clk 0:00:39.7]} 30. Qxe6 {[%clk 0:01:14.2]}
30... Nxe6 {[%clk 0:00:40.6]} 31. a3 {[%clk 0:01:13.5]} 31... Rd5 {[%clk
0:00:38.4]} 32. Rb4 {[%clk 0:00:48.6]} 32... b6 {[%clk 0:00:38.2]} 33. Bb8
{[%clk 0:00:47.4]} 33... Nxd4 {[%clk 0:00:25.5]} 34. Bxa7 {[%clk 0:00:39.9]}
34... Nc6 {[%clk 0:00:23.3]} 35. Ra4 {[%clk 0:00:39.8]} 35... b5 {[%clk
0:00:17.4]} 36. Ra6 {[%clk 0:00:38.8]} 36... Ne5 {[%clk 0:00:18]} 37. Bb8 {[%clk
0:00:35]} 37... Nc4 {[%clk 0:00:17.6]} 38. b3 {[%clk 0:00:33.9]} 38... Nd2
{[%clk 0:00:18]} 39. b4 {[%clk 0:00:23.1]} 39... Ne4 {[%clk 0:00:18.1]} 40. Bf4
{[%clk 0:00:20.6]} 40... Rd1+ {[%clk 0:00:17.4]} 41. Kh2 {[%clk 0:00:20.3]}
41... Nxf2 {[%clk 0:00:17.5]} 42. Ra8+ {[%clk 0:00:20.4]} 42... Kh7 {[%clk
0:00:17.6]} 43. Rb8 {[%clk 0:00:19.9]} 43... g5 {[%clk 0:00:18]} 44. Bg3 {[%clk
0:00:18.6]} 44... Rh1# {[%clk 0:00:17.1]} 0-1

[Event "Early-Titled-Tuesday-Blitz-March-05-2024"]
[Site "Chess.com"]
[Date "2024.03.05"]
[Round "4"]
[White "goodnigth"]
[Black "ChessFanNM"]
[Result "0-1"]
[WhiteElo "1928"]
[BlackElo "2265"]
[TimeControl "180+1"]
[EndTime "8:41:54 PST"]
[Termination "ChessFanNM won on time"]

1. d4 {[%clk 0:03:00.9]} 1... d5 {[%clk 0:02:58.8]} 2. Nf3 {[%clk 0:02:55.7]}
2... Nf6 {[%clk 0:02:57.7]} 3. c3 {[%clk 0:02:38]} 3... Bf5 {[%clk 0:02:56.7]}
4. Qb3 {[%clk 0:02:35.4]} 4... Bc8 {[%clk 0:02:46.9]} 5. Bg5 {[%clk 0:02:11.9]}
5... c6 {[%clk 0:02:41.7]} 6. Nbd2 {[%clk 0:02:10.7]} 6... Ne4 {[%clk
0:02:35.5]} 7. Nxe4 {[%clk 0:02:06.9]} 7... dxe4 {[%clk 0:02:36.4]} 8. Nd2
{[%clk 0:02:06.7]} 8... Qd5 {[%clk 0:02:33.1]} 9. Bf4 {[%clk 0:02:03.1]} 9...
Qxb3 {[%clk 0:02:26.9]} 10. axb3 {[%clk 0:02:04]} 10... f5 {[%clk 0:02:22.7]}
11. Bxb8 {[%clk 0:01:56.4]} 11... Rxb8 {[%clk 0:02:23.6]} 12. Rxa7 {[%clk
0:01:56.1]} 12... e5 {[%clk 0:02:15.1]} 13. e3 {[%clk 0:01:26]} 13... exd4
{[%clk 0:02:03.3]} 14. exd4 {[%clk 0:01:26.9]} 14... Bd6 {[%clk 0:01:56.9]} 15.
Bc4 {[%clk 0:00:54.9]} 15... b5 {[%clk 0:01:56.2]} 16. Be2 {[%clk 0:00:51.1]}
16... O-O {[%clk 0:01:55.3]} 17. b4 {[%clk 0:00:48.5]} 17... Be6 {[%clk
0:01:51.4]} 18. O-O {[%clk 0:00:46.9]} 18... Bf4 {[%clk 0:01:39.8]} 19. Rd1
{[%clk 0:00:42.6]} 19... Ra8 {[%clk 0:01:30.9]} 20. Rxa8 {[%clk 0:00:36.1]}
20... Rxa8 {[%clk 0:01:31.8]} 21. g3 {[%clk 0:00:30.4]} 21... Bg5 {[%clk
0:01:23.1]} 22. h4 {[%clk 0:00:27.8]} 22... Bh6 {[%clk 0:01:19.5]} 23. Nf1
{[%clk 0:00:26.9]} 23... Ra2 {[%clk 0:01:09.8]} 24. Rb1 {[%clk 0:00:26.3]} 24...
Bb3 {[%clk 0:01:02.1]} 25. Ne3 {[%clk 0:00:20.4]} 25... Bxe3 {[%clk 0:00:58]}
26. fxe3 {[%clk 0:00:21.3]} 26... Bc2 {[%clk 0:00:58.4]} 27. Rc1 {[%clk
0:00:20.2]} 27... Rxb2 {[%clk 0:00:58.2]} 28. d5 {[%clk 0:00:18.7]} 28... cxd5
{[%clk 0:00:55.8]} 29. Bxb5 {[%clk 0:00:18.7]} 29... Bb3 {[%clk 0:00:49.1]} 30.
Bc6 {[%clk 0:00:17.7]} 30... Kf7 {[%clk 0:00:46.3]} 31. b5 {[%clk 0:00:16.9]}
31... Ke6 {[%clk 0:00:45.5]} 32. b6 {[%clk 0:00:16.8]} 32... Bc4 {[%clk
0:00:45.5]} 33. b7 {[%clk 0:00:07.8]} 33... Kd6 {[%clk 0:00:44.9]} 34. Be8
{[%clk 0:00:05.4]} 34... Rxb7 {[%clk 0:00:44]} 35. Ra1 {[%clk 0:00:05.3]} 35...
Rb3 {[%clk 0:00:39.1]} 36. Rc1 {[%clk 0:00:04.5]} 36... Ke7 {[%clk 0:00:35.5]}
37. Bh5 {[%clk 0:00:01.9]} 37... Kd6 {[%clk 0:00:25.9]} 38. Bd1 {[%clk
0:00:01.6]} 38... Ra3 {[%clk 0:00:26.1]} 0-1

[Event "Early-Titled-Tuesday-Blitz-March-05-2024"]
[Site "Chess.com"]
[Date "2024.03.05"]
[Round "4"]
[White "Arteler"]
[Black "Szachulec75"]
[Result "0-1"]
[WhiteElo "2437"]
[BlackElo "2218"]
[TimeControl "180+1"]
[EndTime "8:41:56 PST"]
[Termination "Szachulec75 won on time"]

1. Nf3 {[%clk 0:02:55]} 1... Nf6 {[%clk 0:02:57.4]} 2. d4 {[%clk 0:02:53.3]}
2... g6 {[%clk 0:02:53.5]} 3. g3 {[%clk 0:02:52.8]} 3... Bg7 {[%clk 0:02:53.9]}
4. Bg2 {[%clk 0:02:53.1]} 4... d6 {[%clk 0:02:54.1]} 5. c4 {[%clk 0:02:50.9]}
5... O-O {[%clk 0:02:54.3]} 6. Nc3 {[%clk 0:02:50.2]} 6... Nbd7 {[%clk
0:02:53.5]} 7. O-O {[%clk 0:02:49.4]} 7... e5 {[%clk 0:02:53.9]} 8. dxe5 {[%clk
0:02:47.1]} 8... dxe5 {[%clk 0:02:53.1]} 9. Qc2 {[%clk 0:02:40.9]} 9... c6
{[%clk 0:02:53.2]} 10. Rd1 {[%clk 0:02:40.2]} 10... Qc7 {[%clk 0:02:52.9]} 11.
e4 {[%clk 0:02:25.4]} 11... a5 {[%clk 0:02:51.8]} 12. b3 {[%clk 0:02:23.8]}
12... Re8 {[%clk 0:02:47]} 13. Bb2 {[%clk 0:02:23.2]} 13... Nc5 {[%clk
0:02:44.5]} 14. Nd2 {[%clk 0:01:25.1]} 14... Qb6 {[%clk 0:02:35.8]} 15. Nf1
{[%clk 0:01:23.5]} 15... a4 {[%clk 0:02:15.2]} 16. Nxa4 {[%clk 0:01:12.6]} 16...
Nxa4 {[%clk 0:02:13.5]} 17. bxa4 {[%clk 0:01:12.6]} 17... Nd7 {[%clk 0:02:03.9]}
18. Ne3 {[%clk 0:00:59.8]} 18... Nc5 {[%clk 0:02:03]} 19. Rab1 {[%clk
0:00:44.9]} 19... Qc7 {[%clk 0:01:57.2]} 20. Qd2 {[%clk 0:00:17.4]} 20... Nxa4
{[%clk 0:01:55.4]} 21. Nc2 {[%clk 0:00:13.9]} 21... Nxb2 {[%clk 0:01:53.4]} 22.
Rxb2 {[%clk 0:00:12.8]} 22... Be6 {[%clk 0:01:53.7]} 23. Qc3 {[%clk 0:00:10.7]}
23... Red8 {[%clk 0:01:41.8]} 24. Rxd8+ {[%clk 0:00:05.8]} 24... Qxd8 {[%clk
0:01:38.7]} 25. Qb3 {[%clk 0:00:04.7]} 25... b5 {[%clk 0:01:35.7]} 26. Ne3
{[%clk 0:00:02.5]} 26... Rb8 {[%clk 0:01:09.4]} 27. Qc2 {[%clk 0:00:02.8]} 27...
b4 {[%clk 0:01:09.2]} 28. c5 {[%clk 0:00:02.6]} 28... f6 {[%clk 0:01:04.9]} 29.
Qd2 {[%clk 0:00:01.7]} 29... Qd4 {[%clk 0:01:00.6]} 30. Qxd4 {[%clk 0:00:01.5]}
30... exd4 {[%clk 0:01:00.1]} 31. Nc2 {[%clk 0:00:02.4]} 31... d3 {[%clk
0:00:59.1]} 32. Nxb4 {[%clk 0:00:02.1]} 32... f5 {[%clk 0:00:56.2]} 33. Nxd3
{[%clk 0:00:01.7]} 33... Bxb2 {[%clk 0:00:54.5]} 34. Nxb2 {[%clk 0:00:02.6]}
34... Rxb2 {[%clk 0:00:54.4]} 35. Bh3 {[%clk 0:00:02.2]} 35... Rxa2 {[%clk
0:00:51.8]} 36. exf5 {[%clk 0:00:02.5]} 36... Bxf5 {[%clk 0:00:50.8]} 37. Bxf5
{[%clk 0:00:02.3]} 37... gxf5 {[%clk 0:00:50.1]} 38. Kg2 {[%clk 0:00:03.2]}
38... Kf7 {[%clk 0:00:50.5]} 39. Kf3 {[%clk 0:00:04.1]} 39... Kf6 {[%clk
0:00:50.7]} 40. h4 {[%clk 0:00:03.2]} 40... Ra4 {[%clk 0:00:50.2]} 41. g4 {[%clk
0:00:04.1]} 41... fxg4+ {[%clk 0:00:49.4]} 42. Kg3 {[%clk 0:00:03.8]} 42... Kf5
{[%clk 0:00:49.7]} 43. f4 {[%clk 0:00:03.5]} 43... h5 {[%clk 0:00:49.8]} 44. Kf2
{[%clk 0:00:02.1]} 44... Kxf4 {[%clk 0:00:50.4]} 45. Kg2 {[%clk 0:00:02.5]}
45... Ra2+ {[%clk 0:00:49.7]} 46. Kh1 {[%clk 0:00:01.6]} 46... Kf3 {[%clk
0:00:49.5]} 0-1

[Event "Early-Titled-Tuesday-Blitz-March-05-2024"]
[Site "Chess.com"]
[Date "2024.03.05"]
[Round "4"]
[White "campochess"]
[Black "balack95"]
[Result "0-1"]
[WhiteElo "2221"]
[BlackElo "2461"]
[TimeControl "180+1"]
[EndTime "8:42:02 PST"]
[Termination "balack95 won by resignation"]

1. e4 {[%clk 0:02:59.2]} 1... c5 {[%clk 0:02:59]} 2. Nc3 {[%clk 0:02:55.9]} 2...
e6 {[%clk 0:02:59.2]} 3. Nf3 {[%clk 0:02:50.6]} 3... d5 {[%clk 0:02:57.9]} 4.
exd5 {[%clk 0:02:50.5]} 4... exd5 {[%clk 0:02:57.8]} 5. Bb5+ {[%clk 0:02:50.1]}
5... Nc6 {[%clk 0:02:57]} 6. Qe2+ {[%clk 0:02:49.7]} 6... Be7 {[%clk 0:02:48.1]}
7. d4 {[%clk 0:02:49.5]} 7... Nf6 {[%clk 0:02:44.6]} 8. dxc5 {[%clk 0:02:48.4]}
8... d4 {[%clk 0:02:37.6]} 9. Bxc6+ {[%clk 0:02:41.7]} 9... bxc6 {[%clk
0:02:37.2]} 10. Ne4 {[%clk 0:02:41]} 10... O-O {[%clk 0:02:35]} 11. Nxf6+ {[%clk
0:02:36.5]} 11... Bxf6 {[%clk 0:02:33.8]} 12. O-O {[%clk 0:02:36.3]} 12... Qd5
{[%clk 0:02:26.4]} 13. Rd1 {[%clk 0:02:22]} 13... Bg4 {[%clk 0:02:19.7]} 14. c4
{[%clk 0:02:11.7]} 14... Qxc5 {[%clk 0:02:14.7]} 15. Qe4 {[%clk 0:02:04.9]}
15... Bxf3 {[%clk 0:01:47.1]} 16. Qxf3 {[%clk 0:02:04.7]} 16... Qxc4 {[%clk
0:01:47.6]} 17. Bf4 {[%clk 0:02:02.5]} 17... c5 {[%clk 0:01:44.1]} 18. b3 {[%clk
0:02:00.7]} 18... Qa6 {[%clk 0:01:37]} 19. Rac1 {[%clk 0:01:54.4]} 19... Rac8
{[%clk 0:01:35.3]} 20. a4 {[%clk 0:01:51.8]} 20... Rfd8 {[%clk 0:01:33.3]} 21.
Rd3 {[%clk 0:01:45.5]} 21... h6 {[%clk 0:01:33.3]} 22. h3 {[%clk 0:01:33.3]}
22... c4 {[%clk 0:01:33.2]} 23. bxc4 {[%clk 0:01:31.8]} 23... Rxc4 {[%clk
0:01:30.4]} 24. Rcd1 {[%clk 0:01:31.7]} 24... Rxa4 {[%clk 0:01:29.3]} 25. Qg3
{[%clk 0:01:26.7]} 25... Kh7 {[%clk 0:01:09.4]} 26. Be5 {[%clk 0:01:18.3]} 26...
Bxe5 {[%clk 0:01:02.2]} 27. Qxe5 {[%clk 0:01:18.2]} 27... Ra1 {[%clk 0:00:57.6]}
28. Rxa1 {[%clk 0:00:53.5]} 28... Qxa1+ {[%clk 0:00:58.5]} 29. Kh2 {[%clk
0:00:53.5]} 29... Qb2 {[%clk 0:00:47.9]} 30. Rg3 {[%clk 0:00:51.4]} 30... f6
{[%clk 0:00:39.7]} 31. Qe7 {[%clk 0:00:50.1]} 31... Rg8 {[%clk 0:00:39.6]} 32.
Qxa7 {[%clk 0:00:47.6]} 32... Qxf2 {[%clk 0:00:38.9]} 33. Qf7 {[%clk 0:00:41.4]}
33... Qf4 {[%clk 0:00:38]} 34. Qd7 {[%clk 0:00:29.5]} 34... h5 {[%clk
0:00:35.8]} 35. Qf7 {[%clk 0:00:24.2]} 35... h4 {[%clk 0:00:30.3]} 36. Qg6+
{[%clk 0:00:23.9]} 36... Kh8 {[%clk 0:00:29.4]} 37. Qh5+ {[%clk 0:00:23.7]}
37... Qh6 {[%clk 0:00:30]} 38. Qxh6+ {[%clk 0:00:21.5]} 38... gxh6 {[%clk
0:00:30.9]} 39. Rd3 {[%clk 0:00:20.9]} 39... Rd8 {[%clk 0:00:30.9]} 40. Kg1
{[%clk 0:00:20.4]} 40... Kg7 {[%clk 0:00:31]} 41. Kf2 {[%clk 0:00:20.6]} 41...
Kg6 {[%clk 0:00:31.1]} 42. Kf3 {[%clk 0:00:21.1]} 42... Kf5 {[%clk 0:00:31.8]}
43. Ke2 {[%clk 0:00:18.1]} 43... Ke4 {[%clk 0:00:31]} 44. Kd2 {[%clk 0:00:18.2]}
44... f5 {[%clk 0:00:31.3]} 45. Ra3 {[%clk 0:00:16.8]} 45... Rb8 {[%clk
0:00:30.9]} 46. Ra7 {[%clk 0:00:12.8]} 46... Rb2+ {[%clk 0:00:30.8]} 47. Ke1
{[%clk 0:00:12.2]} 47... Rxg2 {[%clk 0:00:31.4]} 48. Re7+ {[%clk 0:00:10.6]}
48... Kf3 {[%clk 0:00:31.9]} 0-1

[Event "Early-Titled-Tuesday-Blitz-March-05-2024"]
[Site "Chess.com"]
[Date "2024.03.05"]
[Round "4"]
[White "MagnusCarlsen"]
[Black "Vaathi_Coming"]
[Result "1-0"]
[WhiteElo "3279"]
[BlackElo "2893"]
[TimeControl "180+1"]
[EndTime "8:42:05 PST"]
[Termination "MagnusCarlsen won on time"]

1. d4 {[%clk 0:02:21]} 1... Nf6 {[%clk 0:02:50.8]} 2. Bf4 {[%clk 0:02:19.8]}
2... d5 {[%clk 0:02:49.6]} 3. e3 {[%clk 0:02:19.6]} 3... Bf5 {[%clk 0:02:49.6]}
4. c4 {[%clk 0:02:06.2]} 4... e6 {[%clk 0:02:48.9]} 5. Nc3 {[%clk 0:02:05.8]}
5... Nbd7 {[%clk 0:02:30.6]} 6. Nf3 {[%clk 0:02:04.6]} 6... c6 {[%clk
0:02:17.8]} 7. Qb3 {[%clk 0:02:03.6]} 7... dxc4 {[%clk 0:01:00.1]} 8. Bxc4
{[%clk 0:01:56.2]} 8... Nb6 {[%clk 0:00:58.9]} 9. Be2 {[%clk 0:01:54.5]} 9...
Be7 {[%clk 0:00:55.6]} 10. O-O {[%clk 0:01:54.5]} 10... h6 {[%clk 0:00:54.6]}
11. h3 {[%clk 0:01:46.8]} 11... O-O {[%clk 0:00:53.7]} 12. Bh2 {[%clk
0:01:46.9]} 12... a5 {[%clk 0:00:49.5]} 13. a4 {[%clk 0:01:42.6]} 13... Nfd5
{[%clk 0:00:48.4]} 14. Rac1 {[%clk 0:01:36]} 14... Bh7 {[%clk 0:00:31.5]} 15.
Rfd1 {[%clk 0:01:35]} 15... Nb4 {[%clk 0:00:22]} 16. e4 {[%clk 0:01:14.7]} 16...
Nd7 {[%clk 0:00:17.7]} 17. Bf4 {[%clk 0:01:11.8]} 17... Nf6 {[%clk 0:00:16.6]}
18. Nd2 {[%clk 0:00:59.2]} 18... Kh8 {[%clk 0:00:07.5]} 19. Be3 {[%clk
0:00:58.1]} 19... Nd7 {[%clk 0:00:03.4]} 20. Nc4 {[%clk 0:00:57.2]} 20... f5
{[%clk 0:00:02.6]} 21. d5 {[%clk 0:00:29.5]} 21... exd5 {[%clk 0:00:02.6]} 22.
exd5 {[%clk 0:00:29.6]} 22... f4 {[%clk 0:00:02.7]} 23. Bd2 {[%clk 0:00:21.9]}
23... cxd5 {[%clk 0:00:02.9]} 24. Nb5 {[%clk 0:00:12.9]} 24... dxc4 {[%clk
0:00:02.8]} 25. Bxc4 {[%clk 0:00:13.8]} 25... Nc5 {[%clk 0:00:01.4]} 26. Qf3
{[%clk 0:00:08.8]} 26... Qb6 {[%clk 0:00:01.9]} 27. Bc3 {[%clk 0:00:08.1]} 27...
Bf6 {[%clk 0:00:02.1]} 28. Rd6 {[%clk 0:00:07.9]} 28... Nc6 {[%clk 0:00:01.8]}
29. Rcd1 {[%clk 0:00:08.2]} 29... Bxc3 {[%clk 0:00:00.9]} 30. Qxc3 {[%clk
0:00:08.1]} 30... Ne4 {[%clk 0:00:01.3]} 31. Qf3 {[%clk 0:00:08]} 31... Nxd6
{[%clk 0:00:00.2]} 32. Nxd6 {[%clk 0:00:08.9]} 1-0

[Event "Early-Titled-Tuesday-Blitz-March-05-2024"]
[Site "Chess.com"]
[Date "2024.03.05"]
[Round "4"]
[White "AttackSparrow"]
[Black "David_George21"]
[Result "1-0"]
[WhiteElo "2637"]
[BlackElo "2430"]
[TimeControl "180+1"]
[EndTime "8:42:06 PST"]
[Termination "AttackSparrow won by checkmate"]

1. Nf3 {[%clk 0:03:00.9]} 1... c5 {[%clk 0:02:57.9]} 2. e3 {[%clk 0:03:01.3]}
2... Nf6 {[%clk 0:02:53.3]} 3. d4 {[%clk 0:03:02.2]} 3... e6 {[%clk 0:02:51.3]}
4. Bd3 {[%clk 0:02:41.2]} 4... Nc6 {[%clk 0:02:49.8]} 5. a3 {[%clk 0:02:39.9]}
5... d5 {[%clk 0:02:47.7]} 6. b3 {[%clk 0:02:38.8]} 6... Bd6 {[%clk 0:02:45.9]}
7. Bb2 {[%clk 0:02:38.1]} 7... O-O {[%clk 0:02:46.4]} 8. O-O {[%clk 0:02:38.3]}
8... b6 {[%clk 0:02:45.3]} 9. Nbd2 {[%clk 0:02:36.1]} 9... Bb7 {[%clk
0:02:44.9]} 10. Qe2 {[%clk 0:02:30]} 10... a6 {[%clk 0:02:42.9]} 11. Rfd1 {[%clk
0:02:26.9]} 11... b5 {[%clk 0:02:40.9]} 12. dxc5 {[%clk 0:02:22.7]} 12... Bxc5
{[%clk 0:02:41.8]} 13. c4 {[%clk 0:02:11.4]} 13... bxc4 {[%clk 0:02:35]} 14.
bxc4 {[%clk 0:02:12.3]} 14... Qe7 {[%clk 0:02:32.8]} 15. Nb3 {[%clk 0:01:36.8]}
15... dxc4 {[%clk 0:02:20.4]} 16. Bxc4 {[%clk 0:01:37.7]} 16... Ba7 {[%clk
0:02:18.3]} 17. a4 {[%clk 0:01:21.7]} 17... Nb4 {[%clk 0:01:57.7]} 18. Na5
{[%clk 0:01:15.5]} 18... Be4 {[%clk 0:01:50.2]} 19. Ba3 {[%clk 0:01:11.3]} 19...
Bb6 {[%clk 0:01:41.6]} 20. Nb3 {[%clk 0:00:59.4]} 20... a5 {[%clk 0:01:41.7]}
21. Nbd4 {[%clk 0:00:53.8]} 21... Qb7 {[%clk 0:01:37.4]} 22. Ne1 {[%clk
0:00:48.8]} 22... Nfd5 {[%clk 0:01:26.4]} 23. Rac1 {[%clk 0:00:45.6]} 23... Rfd8
{[%clk 0:01:13.6]} 24. Bb2 {[%clk 0:00:43.7]} 24... Rac8 {[%clk 0:01:00.1]} 25.
Nb5 {[%clk 0:00:43.8]} 25... f6 {[%clk 0:00:54]} 26. h4 {[%clk 0:00:42.5]} 26...
Kh8 {[%clk 0:00:53.3]} 27. h5 {[%clk 0:00:42.3]} 27... h6 {[%clk 0:00:53.6]} 28.
Qg4 {[%clk 0:00:37.1]} 28... Bf5 {[%clk 0:00:20.2]} 29. Qh4 {[%clk 0:00:36.9]}
29... Nxe3 {[%clk 0:00:19.6]} 30. fxe3 {[%clk 0:00:30.3]} 30... Bxe3+ {[%clk
0:00:16.9]} 31. Kh1 {[%clk 0:00:26.7]} 31... Bxc1 {[%clk 0:00:15.9]} 32. Rxc1
{[%clk 0:00:23.8]} 32... Rc6 {[%clk 0:00:11]} 33. Be2 {[%clk 0:00:18.4]} 33...
Rxc1 {[%clk 0:00:10.5]} 34. Bxc1 {[%clk 0:00:19.3]} 34... Qc6 {[%clk 0:00:09.3]}
35. Bxh6 {[%clk 0:00:17.9]} 35... Qc5 {[%clk 0:00:04.7]} 36. Bf4 {[%clk
0:00:14.1]} 36... Nc2 {[%clk 0:00:03.7]} 37. h6 {[%clk 0:00:13.9]} 37... Nxe1
{[%clk 0:00:03.2]} 38. hxg7+ {[%clk 0:00:13.2]} 38... Kxg7 {[%clk 0:00:04.1]}
39. Qh6+ {[%clk 0:00:10]} 39... Kf7 {[%clk 0:00:03.9]} 40. Bh5+ {[%clk
0:00:10.7]} 40... Ke7 {[%clk 0:00:04.2]} 41. Qg7# {[%clk 0:00:11]} 1-0

[Event "Early-Titled-Tuesday-Blitz-March-05-2024"]
[Site "Chess.com"]
[Date "2024.03.05"]
[Round "4"]
[White "JoliyRoger"]
[Black "Aslanov_Umid"]
[Result "0-1"]
[WhiteElo "2421"]
[BlackElo "2621"]
[TimeControl "180+1"]
[EndTime "8:42:06 PST"]
[Termination "Aslanov_Umid won on time"]

1. d4 {[%clk 0:03:00.9]} 1... d5 {[%clk 0:03:00.1]} 2. c4 {[%clk 0:02:59.5]}
2... c6 {[%clk 0:03:00.7]} 3. Nc3 {[%clk 0:02:58.8]} 3... Nf6 {[%clk 0:03:00.8]}
4. Nf3 {[%clk 0:02:56]} 4... e6 {[%clk 0:03:00.2]} 5. e3 {[%clk 0:02:55.6]} 5...
Nbd7 {[%clk 0:02:59.9]} 6. b3 {[%clk 0:02:56.2]} 6... Bd6 {[%clk 0:02:58.9]} 7.
Bb2 {[%clk 0:02:56.7]} 7... O-O {[%clk 0:02:59.5]} 8. Bd3 {[%clk 0:02:57.1]}
8... Re8 {[%clk 0:03:00]} 9. Qc2 {[%clk 0:02:57.4]} 9... a6 {[%clk 0:02:55.1]}
10. O-O {[%clk 0:02:56.9]} 10... e5 {[%clk 0:02:54.3]} 11. cxd5 {[%clk
0:02:56.5]} 11... cxd5 {[%clk 0:02:54]} 12. dxe5 {[%clk 0:02:55.8]} 12... Nxe5
{[%clk 0:02:54.9]} 13. Nxe5 {[%clk 0:02:49.3]} 13... Bxe5 {[%clk 0:02:55.8]} 14.
Ne2 {[%clk 0:02:48.5]} 14... Bxh2+ {[%clk 0:02:30.9]} 15. Kxh2 {[%clk
0:02:48.4]} 15... Ng4+ {[%clk 0:02:31.6]} 16. Kg3 {[%clk 0:02:49.1]} 16... Qg5
{[%clk 0:02:20]} 17. f4 {[%clk 0:02:36.5]} 17... Qh5 {[%clk 0:02:15.7]} 18. Bd4
{[%clk 0:02:08.6]} 18... Qh2+ {[%clk 0:00:58.1]} 19. Kf3 {[%clk 0:02:06.8]}
19... Qh4 {[%clk 0:00:59]} 20. g3 {[%clk 0:01:10.3]} 20... Qh5 {[%clk
0:00:41.9]} 21. Rh1 {[%clk 0:01:07.1]} 21... Nh2+ {[%clk 0:00:15.1]} 22. Kg2
{[%clk 0:00:57.7]} 22... Qh3+ {[%clk 0:00:08.8]} 23. Kf2 {[%clk 0:00:52.3]}
23... Be6 {[%clk 0:00:03.1]} 24. Rag1 {[%clk 0:00:38.5]} 24... Rac8 {[%clk
0:00:02.6]} 25. Qb1 {[%clk 0:00:38.5]} 25... Ng4+ {[%clk 0:00:02.9]} 26. Ke1
{[%clk 0:00:37]} 26... Nh2 {[%clk 0:00:03.8]} 27. Kd1 {[%clk 0:00:23.9]} 27...
h6 {[%clk 0:00:03.9]} 28. Qb2 {[%clk 0:00:12.8]} 28... Bg4 {[%clk 0:00:04]} 29.
Qd2 {[%clk 0:00:07.1]} 29... Bf3 {[%clk 0:00:03.2]} 30. Qe1 {[%clk 0:00:05.8]}
30... Bxh1 {[%clk 0:00:03.1]} 31. Rxh1 {[%clk 0:00:06.5]} 31... Rc6 {[%clk
0:00:02.5]} 32. Qf2 {[%clk 0:00:04.2]} 32... Qc8 {[%clk 0:00:02.4]} 0-1